[Event "Early-Titled-Tuesday-Blitz-February-20-2024"]
[Site "Chess.com"]
[Date "2024.02.20"]
[Round "4"]
[White "VladimirKramnik"]
[Black "Rodalquilar"]
[Result "1-0"]
[WhiteElo "2959"]
[BlackElo "2752"]
[TimeControl "180+1"]
[EndTime "8:38:31 PST"]
[Termination "VladimirKramnik won by resignation"]

1. e4 {[%clk 0:03:00.9]} 1... d5 {[%clk 0:02:59.6]} 2. exd5 {[%clk 0:02:59.9]}
2... Qxd5 {[%clk 0:03:00.5]} 3. Nc3 {[%clk 0:02:59.9]} 3... Qa5 {[%clk
0:03:00.8]} 4. Nf3 {[%clk 0:02:58.1]} 4... Nf6 {[%clk 0:03:01]} 5. d4 {[%clk
0:02:57.9]} 5... Bf5 {[%clk 0:03:01]} 6. Bc4 {[%clk 0:02:49.3]} 6... e6 {[%clk
0:03:01.2]} 7. Bd2 {[%clk 0:02:48.3]} 7... Bb4 {[%clk 0:03:01.2]} 8. Nb5 {[%clk
0:02:36.9]} 8... Bxd2+ {[%clk 0:02:16.8]} 9. Qxd2 {[%clk 0:02:35.9]} 9... Qxd2+
{[%clk 0:02:05.7]} 10. Kxd2 {[%clk 0:02:35.4]} 10... Ne4+ {[%clk 0:01:55.6]} 11.
Ke3 {[%clk 0:02:29.9]} 11... Nd6 {[%clk 0:01:54.2]} 12. Nxd6+ {[%clk 0:02:11.8]}
12... cxd6 {[%clk 0:01:54.7]} 13. c3 {[%clk 0:02:10.4]} 13... Nd7 {[%clk
0:01:50.8]} 14. Rae1 {[%clk 0:02:06]} 14... h6 {[%clk 0:01:46.2]} 15. Kd2 {[%clk
0:02:00.3]} 15... Nb6 {[%clk 0:01:44.3]} 16. Bb3 {[%clk 0:01:56.3]} 16... Kd7
{[%clk 0:01:40.3]} 17. Nh4 {[%clk 0:01:53.3]} 17... Bh7 {[%clk 0:01:39.6]} 18.
f4 {[%clk 0:01:53.2]} 18... g5 {[%clk 0:01:33.4]} 19. fxg5 {[%clk 0:01:45.6]}
19... hxg5 {[%clk 0:01:33.8]} 20. Nf3 {[%clk 0:01:43.8]} 20... Rag8 {[%clk
0:01:33.9]} 21. Rhf1 {[%clk 0:01:42.3]} 21... Bf5 {[%clk 0:01:26.6]} 22. d5
{[%clk 0:01:31.9]} 22... g4 {[%clk 0:01:01.2]} 23. Nd4 {[%clk 0:01:30.7]} 23...
Rxh2 {[%clk 0:01:01.2]} 24. dxe6+ {[%clk 0:01:29.7]} 24... fxe6 {[%clk
0:01:01.2]} 25. Nxf5 {[%clk 0:01:23.7]} 25... Rxg2+ {[%clk 0:01:01.7]} 26. Kc1
{[%clk 0:01:22.6]} 26... d5 {[%clk 0:00:44.3]} 27. Nd4 {[%clk 0:01:14]} 27...
Rg6 {[%clk 0:00:36.1]} 28. Rf7+ {[%clk 0:01:12.2]} 28... Kd6 {[%clk 0:00:36.6]}
29. Rxb7 {[%clk 0:00:57.3]} 29... Nd7 {[%clk 0:00:35.9]} 30. Rxa7 {[%clk
0:00:51.4]} 30... Nc5 {[%clk 0:00:36.2]} 31. Bc2 {[%clk 0:00:48.9]} 31... Rh6
{[%clk 0:00:36]} 32. b4 {[%clk 0:00:46.3]} 32... Rxc2+ {[%clk 0:00:29.5]} 33.
Kxc2 {[%clk 0:00:44.5]} 33... Rh2+ {[%clk 0:00:29.8]} 34. Re2 {[%clk 0:00:43.1]}
34... Rxe2+ {[%clk 0:00:27.8]} 35. Nxe2 {[%clk 0:00:42.9]} 35... Ne4 {[%clk
0:00:28.7]} 36. Rg7 {[%clk 0:00:41.6]} 1-0

[Event "Early-Titled-Tuesday-Blitz-February-20-2024"]
[Site "Chess.com"]
[Date "2024.02.20"]
[Round "4"]
[White "alpope"]
[Black "Karina_Ivanova"]
[Result "1-0"]
[WhiteElo "2500"]
[BlackElo "2278"]
[TimeControl "180+1"]
[EndTime "8:38:33 PST"]
[Termination "alpope won by resignation"]

1. Nf3 {[%clk 0:03:00.9]} 1... Nf6 {[%clk 0:02:55.1]} 2. b3 {[%clk 0:02:59]}
2... g6 {[%clk 0:02:42.4]} 3. Bb2 {[%clk 0:02:55.5]} 3... Bg7 {[%clk 0:02:41.8]}
4. g3 {[%clk 0:02:54.7]} 4... O-O {[%clk 0:02:40.5]} 5. Bg2 {[%clk 0:02:54.7]}
5... d5 {[%clk 0:02:39.9]} 6. O-O {[%clk 0:02:51.3]} 6... c5 {[%clk 0:02:39.2]}
7. e3 {[%clk 0:02:44.7]} 7... Nc6 {[%clk 0:02:37.9]} 8. c4 {[%clk 0:02:34.8]}
8... Bg4 {[%clk 0:02:31.2]} 9. h3 {[%clk 0:02:25.5]} 9... Bf5 {[%clk 0:02:29.8]}
10. d3 {[%clk 0:02:13]} 10... dxc4 {[%clk 0:02:22.6]} 11. dxc4 {[%clk
0:02:13.9]} 11... Qxd1 {[%clk 0:02:20.3]} 12. Rxd1 {[%clk 0:02:14.8]} 12... Rfd8
{[%clk 0:02:19.8]} 13. Na3 {[%clk 0:02:12.1]} 13... Be4 {[%clk 0:02:13.3]} 14.
Nb5 {[%clk 0:02:04.8]} 14... Bc2 {[%clk 0:01:57.8]} 15. Rdc1 {[%clk 0:02:01.1]}
15... Bd3 {[%clk 0:01:53.1]} 16. Ne5 {[%clk 0:01:49.5]} 16... Nxe5 {[%clk
0:01:46.8]} 17. Bxe5 {[%clk 0:01:50.4]} 17... Rd7 {[%clk 0:01:36.5]} 18. Rd1
{[%clk 0:01:44.3]} 18... a6 {[%clk 0:01:23.4]} 19. Nc7 {[%clk 0:01:36.5]} 19...
Rc8 {[%clk 0:01:09.9]} 20. Nd5 {[%clk 0:01:28.5]} 20... Bf5 {[%clk 0:00:50.1]}
21. Nb6 {[%clk 0:01:12.3]} 21... Rxd1+ {[%clk 0:00:44]} 22. Rxd1 {[%clk
0:01:13.2]} 22... Re8 {[%clk 0:00:29.9]} 23. Bxb7 {[%clk 0:01:11.6]} 23... a5
{[%clk 0:00:20.5]} 24. Bc6 {[%clk 0:01:07.9]} 24... Rf8 {[%clk 0:00:18.7]} 25.
g4 {[%clk 0:01:04.9]} 25... Be6 {[%clk 0:00:16.7]} 26. Na4 {[%clk 0:00:57.8]}
26... h5 {[%clk 0:00:15]} 27. g5 {[%clk 0:00:56.7]} 27... Nh7 {[%clk 0:00:11.4]}
28. Bxg7 {[%clk 0:00:56.9]} 28... Kxg7 {[%clk 0:00:11.4]} 29. h4 {[%clk
0:00:57.6]} 29... Rc8 {[%clk 0:00:08.2]} 30. Bd7 {[%clk 0:00:58]} 30... Bxd7
{[%clk 0:00:07.3]} 31. Rxd7 {[%clk 0:00:58.9]} 31... e6 {[%clk 0:00:05]} 32. Ra7
{[%clk 0:00:58.4]} 1-0

[Event "Early-Titled-Tuesday-Blitz-February-20-2024"]
[Site "Chess.com"]
[Date "2024.02.20"]
[Round "4"]
[White "Skatchkov_V"]
[Black "sergoy"]
[Result "0-1"]
[WhiteElo "2616"]
[BlackElo "2984"]
[TimeControl "180+1"]
[EndTime "8:38:34 PST"]
[Termination "sergoy won by resignation"]

1. d4 {[%clk 0:03:00.9]} 1... Nf6 {[%clk 0:03:00.2]} 2. c4 {[%clk 0:03:01.3]}
2... e6 {[%clk 0:03:00.7]} 3. Nf3 {[%clk 0:03:01.8]} 3... b6 {[%clk 0:03:00.1]}
4. g3 {[%clk 0:03:02.3]} 4... Ba6 {[%clk 0:03:00.4]} 5. b3 {[%clk 0:03:03]} 5...
Bb4+ {[%clk 0:03:00.1]} 6. Bd2 {[%clk 0:03:03.2]} 6... Be7 {[%clk 0:03:00.4]} 7.
Bg2 {[%clk 0:03:03.7]} 7... d5 {[%clk 0:03:01.1]} 8. O-O {[%clk 0:03:02.9]} 8...
O-O {[%clk 0:03:00.3]} 9. Bc3 {[%clk 0:03:01]} 9... Nbd7 {[%clk 0:03:00.3]} 10.
Nbd2 {[%clk 0:03:00]} 10... c5 {[%clk 0:03:00.8]} 11. Re1 {[%clk 0:02:54.1]}
11... Rc8 {[%clk 0:02:55.9]} 12. Rc1 {[%clk 0:02:54]} 12... cxd4 {[%clk
0:02:50]} 13. Bxd4 {[%clk 0:02:27.1]} 13... Bb4 {[%clk 0:02:49.9]} 14. Rf1
{[%clk 0:02:22.6]} 14... Qe7 {[%clk 0:02:44.7]} 15. cxd5 {[%clk 0:02:02.1]}
15... exd5 {[%clk 0:02:45.6]} 16. Re1 {[%clk 0:01:45.8]} 16... Ne4 {[%clk
0:02:44]} 17. Rc2 {[%clk 0:01:28.7]} 17... Ndc5 {[%clk 0:02:17]} 18. a3 {[%clk
0:01:16.6]} 18... Nxd2 {[%clk 0:01:53.8]} 19. axb4 {[%clk 0:00:57.1]} 19...
Ncxb3 {[%clk 0:01:53.9]} 20. Rxc8 {[%clk 0:00:56.8]} 20... Rxc8 {[%clk
0:01:52.2]} 21. Bb2 {[%clk 0:00:35.3]} 21... Qxb4 {[%clk 0:01:42.8]} 22. Ne5
{[%clk 0:00:23.6]} 22... Qd6 {[%clk 0:01:19.6]} 23. e3 {[%clk 0:00:15]} 23...
Re8 {[%clk 0:01:13.3]} 24. f4 {[%clk 0:00:09.3]} 24... f6 {[%clk 0:01:11.5]} 25.
Nf3 {[%clk 0:00:07.4]} 25... Nxf3+ {[%clk 0:01:10.4]} 26. Bxf3 {[%clk
0:00:07.6]} 26... Bc4 {[%clk 0:01:11.1]} 27. e4 {[%clk 0:00:05.9]} 27... Qc5+
{[%clk 0:01:07.5]} 28. Kg2 {[%clk 0:00:05.9]} 28... d4 {[%clk 0:01:07.7]} 29. e5
{[%clk 0:00:04.4]} 29... fxe5 {[%clk 0:01:07]} 30. fxe5 {[%clk 0:00:05.3]} 30...
Rxe5 {[%clk 0:01:06.4]} 31. Rxe5 {[%clk 0:00:02]} 31... Qxe5 {[%clk 0:01:07.3]}
32. Bg4 {[%clk 0:00:02.4]} 32... Bd5+ {[%clk 0:01:06.7]} 33. Kh3 {[%clk
0:00:02.6]} 33... Be6 {[%clk 0:01:05]} 34. Qd3 {[%clk 0:00:02.4]} 34... Bxg4+
{[%clk 0:01:01.9]} 35. Kxg4 {[%clk 0:00:03.3]} 35... Nc5 {[%clk 0:01:01.7]} 36.
Qc4+ {[%clk 0:00:03.6]} 36... Qe6+ {[%clk 0:01:01.9]} 0-1

[Event "Early-Titled-Tuesday-Blitz-February-20-2024"]
[Site "Chess.com"]
[Date "2024.02.20"]
[Round "4"]
[White "K_A_S_T_O_R"]
[Black "dmosesov"]
[Result "1-0"]
[WhiteElo "2853"]
[BlackElo "2580"]
[TimeControl "180+1"]
[EndTime "8:38:35 PST"]
[Termination "K_A_S_T_O_R won by resignation"]

1. e4 {[%clk 0:03:00.9]} 1... Nf6 {[%clk 0:02:59.9]} 2. e5 {[%clk 0:03:00.8]}
2... Nd5 {[%clk 0:03:00.2]} 3. d4 {[%clk 0:03:01.7]} 3... d6 {[%clk 0:03:00.8]}
4. Nf3 {[%clk 0:03:02.4]} 4... g6 {[%clk 0:03:01.1]} 5. Bc4 {[%clk 0:03:02.1]}
5... Nb6 {[%clk 0:03:01.4]} 6. Bb3 {[%clk 0:03:02.6]} 6... Bg7 {[%clk 0:03:02]}
7. Ng5 {[%clk 0:03:03.2]} 7... e6 {[%clk 0:03:02.2]} 8. Qf3 {[%clk 0:03:03.5]}
8... Qe7 {[%clk 0:03:01.6]} 9. Ne4 {[%clk 0:03:03.5]} 9... dxe5 {[%clk
0:03:00.6]} 10. dxe5 {[%clk 0:03:03.7]} 10... Nc6 {[%clk 0:02:43.8]} 11. Nf6+
{[%clk 0:03:02.9]} 11... Kf8 {[%clk 0:02:33.1]} 12. Bf4 {[%clk 0:03:00.6]} 12...
Nd7 {[%clk 0:02:23.6]} 13. Nxd7+ {[%clk 0:02:59.2]} 13... Bxd7 {[%clk
0:02:24.5]} 14. Qe3 {[%clk 0:02:59.1]} 14... h6 {[%clk 0:02:18.8]} 15. Nc3
{[%clk 0:02:58.6]} 15... Kg8 {[%clk 0:01:44.6]} 16. O-O-O {[%clk 0:02:57.1]}
16... Rd8 {[%clk 0:01:42.6]} 17. h4 {[%clk 0:02:56.4]} 17... Bc8 {[%clk
0:01:05.8]} 18. g3 {[%clk 0:02:49.7]} 18... Rxd1+ {[%clk 0:01:01.6]} 19. Rxd1
{[%clk 0:02:49.1]} 19... Kh7 {[%clk 0:01:01.5]} 20. Ba4 {[%clk 0:02:45.6]} 20...
Bd7 {[%clk 0:00:42]} 21. Qd2 {[%clk 0:02:33.9]} 21... Be8 {[%clk 0:00:30.1]} 22.
Qe3 {[%clk 0:02:29.3]} 22... Bd7 {[%clk 0:00:29.9]} 23. a3 {[%clk 0:02:28]}
23... Rd8 {[%clk 0:00:29.5]} 24. Rd3 {[%clk 0:02:18.2]} 24... a6 {[%clk
0:00:29.6]} 25. Qe4 {[%clk 0:02:13.1]} 25... b5 {[%clk 0:00:28]} 26. Bb3 {[%clk
0:02:13.3]} 26... Na5 {[%clk 0:00:26.5]} 27. Ba2 {[%clk 0:02:12.8]} 27... Bc6
{[%clk 0:00:26.6]} 28. Qe3 {[%clk 0:02:13.1]} 28... Rxd3 {[%clk 0:00:26.5]} 29.
Qxd3 {[%clk 0:02:13.7]} 29... Qd7 {[%clk 0:00:26.1]} 30. Qxd7 {[%clk 0:02:09.7]}
30... Bxd7 {[%clk 0:00:27]} 31. Ne4 {[%clk 0:02:10.3]} 31... Nb7 {[%clk
0:00:25.3]} 32. b4 {[%clk 0:02:05.1]} 32... Bc6 {[%clk 0:00:22.8]} 33. Nf6+
{[%clk 0:02:04.9]} 33... Kh8 {[%clk 0:00:23.3]} 34. Kd2 {[%clk 0:02:02.9]} 34...
Nd8 {[%clk 0:00:18.3]} 35. c4 {[%clk 0:02:02.3]} 35... bxc4 {[%clk 0:00:16.8]}
36. Bxc4 {[%clk 0:02:02.5]} 36... Bb7 {[%clk 0:00:17.7]} 37. Nd7 {[%clk
0:02:00.5]} 37... Nc6 {[%clk 0:00:17.6]} 38. Nc5 {[%clk 0:01:59.1]} 38... Bc8
{[%clk 0:00:17.7]} 39. Bxa6 {[%clk 0:01:59.5]} 39... Bxa6 {[%clk 0:00:17.7]} 40.
Nxa6 {[%clk 0:02:00.1]} 40... Bxe5 {[%clk 0:00:18.1]} 41. Bxe5+ {[%clk
0:01:59.1]} 41... Nxe5 {[%clk 0:00:19]} 42. Kc3 {[%clk 0:01:59.2]} 42... Kg7
{[%clk 0:00:18.7]} 43. Nxc7 {[%clk 0:01:59.1]} 43... Kf6 {[%clk 0:00:17.5]} 44.
a4 {[%clk 0:01:56.8]} 44... Nd7 {[%clk 0:00:17.6]} 45. a5 {[%clk 0:01:56.8]}
45... Ke5 {[%clk 0:00:17.7]} 46. b5 {[%clk 0:01:56.6]} 46... Kd6 {[%clk
0:00:17.4]} 47. b6 {[%clk 0:01:57]} 47... Kc6 {[%clk 0:00:16.7]} 48. Kb4 {[%clk
0:01:57.3]} 48... e5 {[%clk 0:00:15.6]} 49. Nb5 {[%clk 0:01:56.7]} 49... f5
{[%clk 0:00:16.2]} 50. Na7+ {[%clk 0:01:55.5]} 50... Kd6 {[%clk 0:00:16.7]} 51.
Kb5 {[%clk 0:01:55.4]} 51... e4 {[%clk 0:00:17.3]} 52. Nc6 {[%clk 0:01:51.8]}
52... g5 {[%clk 0:00:17.7]} 53. hxg5 {[%clk 0:01:52.2]} 53... hxg5 {[%clk
0:00:18.6]} 54. b7 {[%clk 0:01:50.9]} 54... f4 {[%clk 0:00:18.7]} 55. gxf4
{[%clk 0:01:51.5]} 55... gxf4 {[%clk 0:00:19.6]} 56. a6 {[%clk 0:01:52.1]} 56...
e3 {[%clk 0:00:19.9]} 57. fxe3 {[%clk 0:01:52.7]} 57... fxe3 {[%clk 0:00:20.8]}
58. a7 {[%clk 0:01:51]} 58... e2 {[%clk 0:00:19]} 59. b8=Q+ {[%clk 0:01:51.4]}
59... Kd5 {[%clk 0:00:18.1]} 60. Qe8 {[%clk 0:01:50.5]} 1-0

[Event "Early-Titled-Tuesday-Blitz-February-20-2024"]
[Site "Chess.com"]
[Date "2024.02.20"]
[Round "4"]
[White "Felix-Rose"]
[Black "Saxar85"]
[Result "0-1"]
[WhiteElo "2282"]
[BlackElo "2719"]
[TimeControl "180+1"]
[EndTime "8:38:35 PST"]
[Termination "Saxar85 won on time"]

1. e4 {[%clk 0:03:00.9]} 1... e5 {[%clk 0:02:59.1]} 2. Nf3 {[%clk 0:03:00.4]}
2... Nc6 {[%clk 0:02:56]} 3. Bb5 {[%clk 0:02:56.1]} 3... a6 {[%clk 0:02:55]} 4.
Ba4 {[%clk 0:02:55.7]} 4... Nf6 {[%clk 0:02:54.9]} 5. d3 {[%clk 0:02:53.5]} 5...
d6 {[%clk 0:02:51.7]} 6. c3 {[%clk 0:02:49.9]} 6... g6 {[%clk 0:02:51.1]} 7.
Nbd2 {[%clk 0:02:48.4]} 7... Bg7 {[%clk 0:02:50.7]} 8. h3 {[%clk 0:02:48.4]}
8... O-O {[%clk 0:02:50.2]} 9. Nf1 {[%clk 0:02:46.9]} 9... Nh5 {[%clk
0:02:46.7]} 10. Ne3 {[%clk 0:02:37.4]} 10... Be6 {[%clk 0:02:42.3]} 11. Bb3
{[%clk 0:01:57.9]} 11... Kh8 {[%clk 0:02:39.1]} 12. g3 {[%clk 0:01:27.4]} 12...
Qd7 {[%clk 0:02:31.3]} 13. Ng5 {[%clk 0:01:18.9]} 13... Bxb3 {[%clk 0:02:24.8]}
14. axb3 {[%clk 0:01:17.8]} 14... Ne7 {[%clk 0:02:13]} 15. c4 {[%clk 0:01:06.3]}
15... f6 {[%clk 0:02:12]} 16. Nf3 {[%clk 0:01:05.4]} 16... f5 {[%clk 0:02:11.1]}
17. Nd5 {[%clk 0:00:49.4]} 17... Rae8 {[%clk 0:02:04]} 18. Bg5 {[%clk
0:00:45.1]} 18... Nxd5 {[%clk 0:02:00.4]} 19. cxd5 {[%clk 0:00:43.8]} 19... c6
{[%clk 0:02:00]} 20. dxc6 {[%clk 0:00:26.8]} 20... Qxc6 {[%clk 0:01:59.6]} 21.
Qc1 {[%clk 0:00:22.7]} 21... Qxc1+ {[%clk 0:01:47.1]} 22. Rxc1 {[%clk
0:00:20.9]} 22... fxe4 {[%clk 0:01:47.1]} 23. Nd2 {[%clk 0:00:18.4]} 23... exd3
{[%clk 0:01:47.2]} 24. Rc7 {[%clk 0:00:17.2]} 24... d5 {[%clk 0:01:42.9]} 25.
Rxb7 {[%clk 0:00:15.8]} 25... e4 {[%clk 0:01:42.7]} 26. O-O {[%clk 0:00:15.7]}
26... Bd4 {[%clk 0:01:35.2]} 27. Rd7 {[%clk 0:00:15]} 27... Rf5 {[%clk
0:01:32.8]} 28. Bh4 {[%clk 0:00:13.4]} 28... g5 {[%clk 0:00:59.9]} 29. g4 {[%clk
0:00:12.4]} 29... Rfe5 {[%clk 0:00:59.9]} 30. gxh5 {[%clk 0:00:11.2]} 30... gxh4
{[%clk 0:00:59.8]} 31. Kh2 {[%clk 0:00:06.9]} 31... Rg8 {[%clk 0:00:58.2]} 32.
Rc1 {[%clk 0:00:04.8]} 32... Reg5 {[%clk 0:00:55.8]} 33. Kh1 {[%clk 0:00:02.1]}
33... Bxf2 {[%clk 0:00:54.4]} 0-1

[Event "Early-Titled-Tuesday-Blitz-February-20-2024"]
[Site "Chess.com"]
[Date "2024.02.20"]
[Round "4"]
[White "MyDream003"]
[Black "Pingah9"]
[Result "1-0"]
[WhiteElo "2736"]
[BlackElo "2532"]
[TimeControl "180+1"]
[EndTime "8:38:36 PST"]
[Termination "MyDream003 won by checkmate"]

1. Nf3 {[%clk 0:03:00.9]} 1... g6 {[%clk 0:02:57.2]} 2. d4 {[%clk 0:03:00.6]}
2... f5 {[%clk 0:02:56.5]} 3. g3 {[%clk 0:02:56.9]} 3... Bg7 {[%clk 0:02:56.5]}
4. Bg2 {[%clk 0:02:57.2]} 4... Nf6 {[%clk 0:02:57.1]} 5. O-O {[%clk 0:02:57.2]}
5... O-O {[%clk 0:02:57.7]} 6. c4 {[%clk 0:02:57]} 6... d6 {[%clk 0:02:58.2]} 7.
Nc3 {[%clk 0:02:57]} 7... Nc6 {[%clk 0:02:58.6]} 8. d5 {[%clk 0:02:55.5]} 8...
Ne5 {[%clk 0:02:58.8]} 9. Nxe5 {[%clk 0:02:54.2]} 9... dxe5 {[%clk 0:02:59.7]}
10. e4 {[%clk 0:02:45.2]} 10... f4 {[%clk 0:02:59.6]} 11. gxf4 {[%clk
0:02:40.2]} 11... exf4 {[%clk 0:03:00.5]} 12. e5 {[%clk 0:02:39.4]} 12... Ng4
{[%clk 0:03:00.6]} 13. e6 {[%clk 0:02:32.5]} 13... Ne5 {[%clk 0:03:01.2]} 14.
Be4 {[%clk 0:02:16.1]} 14... Nxc4 {[%clk 0:02:55.2]} 15. Kh1 {[%clk 0:02:14.3]}
15... Nd6 {[%clk 0:02:49.3]} 16. Bf3 {[%clk 0:02:13.8]} 16... b6 {[%clk
0:02:36.6]} 17. Ne2 {[%clk 0:02:07.8]} 17... g5 {[%clk 0:02:33.8]} 18. Rg1
{[%clk 0:02:05.7]} 18... h6 {[%clk 0:02:33.8]} 19. h4 {[%clk 0:01:58.3]} 19...
Rf5 {[%clk 0:02:28.1]} 20. Nd4 {[%clk 0:01:45.4]} 20... Bxd4 {[%clk 0:02:08.2]}
21. Qxd4 {[%clk 0:01:46.3]} 21... Qf8 {[%clk 0:01:57.9]} 22. Bd2 {[%clk
0:01:35.1]} 22... c5 {[%clk 0:00:58.1]} 23. Qd3 {[%clk 0:01:27.2]} 23... Qf6
{[%clk 0:00:52.2]} 24. Bc3 {[%clk 0:01:18.2]} 24... Qg6 {[%clk 0:00:51.8]} 25.
Rg2 {[%clk 0:01:06.3]} 25... Bb7 {[%clk 0:00:49.1]} 26. Rag1 {[%clk 0:01:05.7]}
26... Raf8 {[%clk 0:00:39.6]} 27. b3 {[%clk 0:00:53.2]} 27... Kh7 {[%clk
0:00:37.5]} 28. Bb2 {[%clk 0:00:40.1]} 28... Rxd5 {[%clk 0:00:33.8]} 29. Qc3
{[%clk 0:00:23.9]} 29... Qxe6 {[%clk 0:00:24.8]} 30. Qg7# {[%clk 0:00:22]} 1-0

[Event "Early-Titled-Tuesday-Blitz-February-20-2024"]
[Site "Chess.com"]
[Date "2024.02.20"]
[Round "4"]
[White "jeetjain"]
[Black "GMAkobianSTL"]
[Result "0-1"]
[WhiteElo "2516"]
[BlackElo "2808"]
[TimeControl "180+1"]
[EndTime "8:38:38 PST"]
[Termination "GMAkobianSTL won by resignation"]

1. d4 {[%clk 0:02:56]} 1... e6 {[%clk 0:02:57.2]} 2. c4 {[%clk 0:02:55]} 2... f5
{[%clk 0:02:54.6]} 3. Nc3 {[%clk 0:02:54.1]} 3... Nf6 {[%clk 0:02:54.4]} 4. g3
{[%clk 0:02:52.4]} 4... Bb4 {[%clk 0:02:54]} 5. Bg2 {[%clk 0:02:50.5]} 5... O-O
{[%clk 0:02:54.3]} 6. Qb3 {[%clk 0:02:46.2]} 6... Bxc3+ {[%clk 0:02:43.6]} 7.
Qxc3 {[%clk 0:02:46.3]} 7... Ne4 {[%clk 0:02:43]} 8. Qc2 {[%clk 0:02:42.6]} 8...
Nc6 {[%clk 0:02:42.5]} 9. Bxe4 {[%clk 0:02:28.7]} 9... fxe4 {[%clk 0:02:41.9]}
10. Qxe4 {[%clk 0:02:29.6]} 10... d5 {[%clk 0:02:41.7]} 11. cxd5 {[%clk
0:02:25.3]} 11... exd5 {[%clk 0:02:41.4]} 12. Qd3 {[%clk 0:02:15.6]} 12... Bf5
{[%clk 0:02:38.3]} 13. Qc3 {[%clk 0:02:12.6]} 13... Qf6 {[%clk 0:02:21.7]} 14.
Be3 {[%clk 0:02:07]} 14... Rae8 {[%clk 0:02:16.6]} 15. Nf3 {[%clk 0:01:27.6]}
15... Be4 {[%clk 0:02:10.5]} 16. O-O {[%clk 0:01:15.2]} 16... Bxf3 {[%clk
0:02:04.5]} 17. exf3 {[%clk 0:01:16.1]} 17... Qxf3 {[%clk 0:02:02.1]} 18. Bf4
{[%clk 0:01:12.6]} 18... Rxf4 {[%clk 0:01:59.1]} 19. gxf4 {[%clk 0:01:12.2]}
19... Qxf4 {[%clk 0:01:59]} 20. Rae1 {[%clk 0:00:59.7]} 20... Rf8 {[%clk
0:01:49.8]} 21. Qg3 {[%clk 0:00:51.8]} 21... Nxd4 {[%clk 0:01:42.7]} 22. Qxf4
{[%clk 0:00:46]} 22... Rxf4 {[%clk 0:01:42.2]} 23. Re7 {[%clk 0:00:41.5]} 23...
Rf7 {[%clk 0:01:42]} 24. Rxf7 {[%clk 0:00:25.8]} 24... Kxf7 {[%clk 0:01:41.6]}
25. Rd1 {[%clk 0:00:26.1]} 25... c5 {[%clk 0:01:40.8]} 26. Kg2 {[%clk
0:00:23.9]} 26... Ne6 {[%clk 0:01:33.4]} 27. Kf3 {[%clk 0:00:22.7]} 27... Nc7
{[%clk 0:01:30.7]} 28. b3 {[%clk 0:00:20.2]} 28... Kf6 {[%clk 0:01:29.7]} 29.
Kf4 {[%clk 0:00:19.9]} 29... b5 {[%clk 0:01:28.6]} 30. Rc1 {[%clk 0:00:20]}
30... a5 {[%clk 0:01:27.7]} 31. Ke3 {[%clk 0:00:19.3]} 31... Ne6 {[%clk
0:01:26.6]} 32. a4 {[%clk 0:00:19.1]} 32... b4 {[%clk 0:01:23.8]} 33. f3 {[%clk
0:00:17.9]} 33... g5 {[%clk 0:01:23.1]} 34. Rd1 {[%clk 0:00:16.4]} 34... Ke5
{[%clk 0:01:22.8]} 35. Rc1 {[%clk 0:00:16.4]} 35... h5 {[%clk 0:01:21.3]} 36.
Rc2 {[%clk 0:00:15.9]} 36... h4 {[%clk 0:01:16.3]} 37. Rc1 {[%clk 0:00:15.4]}
37... Kd6 {[%clk 0:01:16.1]} 38. Rg1 {[%clk 0:00:12.4]} 38... c4 {[%clk
0:01:15.7]} 39. bxc4 {[%clk 0:00:08.4]} 39... dxc4 {[%clk 0:01:16.6]} 40. Rc1
{[%clk 0:00:07]} 40... c3 {[%clk 0:01:15.2]} 41. Ke4 {[%clk 0:00:06.4]} 41...
Nc5+ {[%clk 0:01:14.2]} 42. Kd4 {[%clk 0:00:06.4]} 42... Nb3+ {[%clk 0:01:14.2]}
0-1

[Event "Early-Titled-Tuesday-Blitz-February-20-2024"]
[Site "Chess.com"]
[Date "2024.02.20"]
[Round "4"]
[White "topce"]
[Black "Ezov"]
[Result "0-1"]
[WhiteElo "2371"]
[BlackElo "2179"]
[TimeControl "180+1"]
[EndTime "8:38:40 PST"]
[Termination "Ezov won by resignation"]

1. c4 {[%clk 0:02:39.7]} 1... e5 {[%clk 0:02:57.6]} 2. Nc3 {[%clk 0:02:39.4]}
2... f5 {[%clk 0:02:56.9]} 3. e3 {[%clk 0:02:38.8]} 3... Nf6 {[%clk 0:02:55.3]}
4. Nge2 {[%clk 0:02:38]} 4... Nc6 {[%clk 0:02:55.6]} 5. d4 {[%clk 0:02:37.8]}
5... g6 {[%clk 0:02:52.5]} 6. d5 {[%clk 0:02:34.9]} 6... Ne7 {[%clk 0:02:50.7]}
7. d6 {[%clk 0:02:28.4]} 7... Nc6 {[%clk 0:02:48.2]} 8. Nb5 {[%clk 0:02:24.6]}
8... cxd6 {[%clk 0:02:39]} 9. Nxd6+ {[%clk 0:02:20.7]} 9... Bxd6 {[%clk
0:02:37]} 10. Qxd6 {[%clk 0:02:21.6]} 10... Qe7 {[%clk 0:02:37.4]} 11. Qxe7+
{[%clk 0:02:16.6]} 11... Kxe7 {[%clk 0:02:38.3]} 12. b3 {[%clk 0:02:15.8]} 12...
Nb4 {[%clk 0:02:36.8]} 13. Ba3 {[%clk 0:02:15.6]} 13... a5 {[%clk 0:02:35.8]}
14. Nc3 {[%clk 0:02:02.3]} 14... d6 {[%clk 0:02:32.5]} 15. O-O-O {[%clk
0:01:11]} 15... Bd7 {[%clk 0:02:07.9]} 16. f3 {[%clk 0:01:05.8]} 16... Bc6
{[%clk 0:02:00.6]} 17. Kb2 {[%clk 0:01:03.9]} 17... Rhd8 {[%clk 0:01:51.3]} 18.
Be2 {[%clk 0:00:46.9]} 18... e4 {[%clk 0:01:21.5]} 19. f4 {[%clk 0:00:43.6]}
19... d5 {[%clk 0:01:12]} 20. cxd5 {[%clk 0:00:41.3]} 20... Nxd5 {[%clk
0:01:12.9]} 21. Nxd5+ {[%clk 0:00:37.5]} 21... Bxd5 {[%clk 0:01:08.2]} 22. Rd4
{[%clk 0:00:35.9]} 22... Rac8 {[%clk 0:00:45.3]} 23. Bxb4+ {[%clk 0:00:34]}
23... axb4 {[%clk 0:00:44.3]} 24. Rxb4 {[%clk 0:00:28.2]} 24... Bc6 {[%clk
0:00:43.7]} 25. Rd1 {[%clk 0:00:26.4]} 25... Rxd1 {[%clk 0:00:42]} 26. Bxd1
{[%clk 0:00:26.7]} 26... Rd8 {[%clk 0:00:42.5]} 27. Rd4 {[%clk 0:00:24.2]} 27...
Rxd4 {[%clk 0:00:38.8]} 28. exd4 {[%clk 0:00:25.1]} 28... e3 {[%clk 0:00:38.1]}
29. Bf3 {[%clk 0:00:13.6]} 29... Bxf3 {[%clk 0:00:35.7]} 30. gxf3 {[%clk
0:00:14.5]} 30... e2 {[%clk 0:00:35.7]} 0-1